[Event "Titled Tuesday Blitz June 15 2021"]
[White "Iskusnyh, Sergei"]
[Black "Sanal, Vahap"]
[WhiteFideId "4120027"]
[BlackFideId "6300545"]
[WhiteElo "2492"]
[BlackElo "2507"]
[Result "1-0"]
[Round "05"]
[TimeControl "180+1"]
[Date "2021.06.15"]
[WhiteClock "0:00:15"]
[BlackClock "0:00:02"]

1. d4 {[%clk 0:03:00]}  Nf6 {[%clk 0:03:00]} 2. c4 {[%clk 0:02:50]}  e6 {[%clk 0:02:59]} 3. g3 {[%clk 0:02:50]}  d5 {[%clk 0:02:58]} 4. Nf3 {[%clk 0:02:49]}  Bb4+ {[%clk 0:02:56]} 5. Bd2 {[%clk 0:02:49]}  Bxd2+ {[%clk 0:02:57]} 6. Nbxd2 {[%clk 0:02:47]}  O-O {[%clk 0:02:58]} 7. Bg2 {[%clk 0:02:46]}  c6 {[%clk 0:02:57]} 8. O-O {[%clk 0:02:46]}  b6 {[%clk 0:02:56]} 9. Qc2 {[%clk 0:02:46]}  Ba6 {[%clk 0:02:55]} 10. Ne5 {[%clk 0:02:38]}  Nfd7 {[%clk 0:02:52]} 11. Nd3 {[%clk 0:02:37]}  Qf6 {[%clk 0:02:43]} 12. e3 {[%clk 0:02:26]}  Bb7 {[%clk 0:02:39]} 13. b4 {[%clk 0:02:19]}  Rc8 {[%clk 0:02:19]} 14. Rfd1 {[%clk 0:02:05]}  Na6 {[%clk 0:02:18]} 15. Qb2 {[%clk 0:01:26]}  Nc7 {[%clk 0:02:17]} 16. Rac1 {[%clk 0:01:24]}  c5 {[%clk 0:02:09]} 17. bxc5 {[%clk 0:01:21]}  Rab8 {[%clk 0:02:04]} 18. cxb6 {[%clk 0:01:11]}  Nxb6 {[%clk 0:02:01]} 19. c5 {[%clk 0:01:07]}  Nc4 {[%clk 0:02:01]} 20. Nxc4 {[%clk 0:00:50]}  Ba6 {[%clk 0:01:06]} 21. Qa3 {[%clk 0:00:49]}  Bxc4 {[%clk 0:01:03]} 22. Ne5 {[%clk 0:00:49]}  Nb5 {[%clk 0:01:03]} 23. Qa5 {[%clk 0:00:49]}  Qe7 {[%clk 0:00:56]} 24. Nxc4 {[%clk 0:00:45]}  dxc4 {[%clk 0:00:57]} 25. Rxc4 {[%clk 0:00:45]}  h5 {[%clk 0:00:58]} 26. Rb4 {[%clk 0:00:43]}  Nc7 {[%clk 0:00:42]} 27. Rdb1 {[%clk 0:00:42]}  Rxb4 {[%clk 0:00:39]} 28. Rxb4 {[%clk 0:00:42]}  e5 {[%clk 0:00:38]} 29. Qxa7 {[%clk 0:00:37]}  exd4 {[%clk 0:00:36]} 30. Rxd4 {[%clk 0:00:37]}  Qe5 {[%clk 0:00:30]} 31. Bf3 {[%clk 0:00:33]}  h4 {[%clk 0:00:29]} 32. Rxh4 {[%clk 0:00:29]}  Ne6 {[%clk 0:00:30]} 33. c6 {[%clk 0:00:24]}  Rb8 {[%clk 0:00:29]} 34. Kg2 {[%clk 0:00:23]}  Ng5 {[%clk 0:00:16]} 35. c7 {[%clk 0:00:23]}  Rf8 {[%clk 0:00:14]} 36. Rd4 {[%clk 0:00:23]}  Qf5 {[%clk 0:00:10]} 37. Qb7 {[%clk 0:00:23]}  Ne6 {[%clk 0:00:10]} 38. Rd1 {[%clk 0:00:19]}  Ng5 {[%clk 0:00:09]} 39. Rd4 {[%clk 0:00:17]}  Qh3+ {[%clk 0:00:09]} 40. Kg1 {[%clk 0:00:17]}  Qf5 {[%clk 0:00:09]} 41. Rf4 {[%clk 0:00:16]}  Nh3+ {[%clk 0:00:08]} 42. Kg2 {[%clk 0:00:16]}  Nxf4+ {[%clk 0:00:08]} 43. exf4 {[%clk 0:00:17]}  Qd7 {[%clk 0:00:08]} 44. a4 {[%clk 0:00:17]}  Rc8 {[%clk 0:00:09]} 45. a5 {[%clk 0:00:16]}  Rxc7 {[%clk 0:00:09]} 46. Qb8+ {[%clk 0:00:16]}  Rc8 {[%clk 0:00:09]} 47. Qb6 {[%clk 0:00:16]}  Qd8 {[%clk 0:00:04]} 48. Qxd8+ {[%clk 0:00:15]}  Rxd8 {[%clk 0:00:05]} 49. a6 {[%clk 0:00:15]}  Rd7 {[%clk 0:00:02]} 50. Bb7 {[%clk 0:00:15]} 1-0


[Site "https://www.chess.com"]

[Event "Titled Tuesday Blitz June 15 2021"]
[White "Ivanisevic, Ivan"]
[Black "Mickiewicz, Piotr"]
[WhiteFideId "912417"]
[BlackFideId "1114891"]
[WhiteElo "2499"]
[BlackElo "2263"]
[Result "1/2-1/2"]
[Round "05"]
[TimeControl "180+1"]
[Date "2021.06.15"]
[WhiteClock "0:00:45"]
[BlackClock "0:00:35"]

1. c4 {[%clk 0:03:00]}  e5 {[%clk 0:02:58]} 2. b3 {[%clk 0:03:00]}  Nf6 {[%clk 0:02:57]} 3. Bb2 {[%clk 0:03:00]}  Nc6 {[%clk 0:02:58]} 4. Nf3 {[%clk 0:03:01]}  d6 {[%clk 0:02:54]} 5. d4 {[%clk 0:03:01]}  e4 {[%clk 0:02:50]} 6. d5 {[%clk 0:03:00]}  exf3 {[%clk 0:02:41]} 7. dxc6 {[%clk 0:03:00]}  bxc6 {[%clk 0:02:41]} 8. exf3 {[%clk 0:02:53]}  Be7 {[%clk 0:02:42]} 9. Bd3 {[%clk 0:02:52]}  O-O {[%clk 0:02:42]} 10. O-O {[%clk 0:02:53]}  c5 {[%clk 0:02:37]} 11. Re1 {[%clk 0:02:52]}  Bb7 {[%clk 0:02:36]} 12. Nc3 {[%clk 0:02:51]}  Nd7 {[%clk 0:02:27]} 13. Be4 {[%clk 0:02:50]}  Bxe4 {[%clk 0:02:25]} 14. Nxe4 {[%clk 0:02:51]}  Nf6 {[%clk 0:01:40]} 15. Ng3 {[%clk 0:02:50]}  Qd7 {[%clk 0:01:37]} 16. Qd3 {[%clk 0:02:49]}  Rae8 {[%clk 0:01:10]} 17. Nf5 {[%clk 0:02:30]}  Bd8 {[%clk 0:01:10]} 18. g4 {[%clk 0:02:19]}  Re6 {[%clk 0:01:09]} 19. Nxg7 {[%clk 0:02:03]}  Kxg7 {[%clk 0:01:10]} 20. g5 {[%clk 0:02:03]}  Rfe8 {[%clk 0:01:10]} 21. gxf6+ {[%clk 0:01:50]}  Bxf6 {[%clk 0:01:11]} 22. Bxf6+ {[%clk 0:01:49]}  Rxf6 {[%clk 0:01:08]} 23. Qc3 {[%clk 0:01:43]}  Rxe1+ {[%clk 0:01:05]} 24. Rxe1 {[%clk 0:01:44]}  Qf5 {[%clk 0:01:05]} 25. Kg2 {[%clk 0:01:33]}  Kf8 {[%clk 0:00:57]} 26. Re4 {[%clk 0:01:33]}  Rg6+ {[%clk 0:00:55]} 27. Kf1 {[%clk 0:01:33]}  Qf6 {[%clk 0:00:52]} 28. Qxf6 {[%clk 0:01:26]}  Rxf6 {[%clk 0:00:53]} 29. Ke2 {[%clk 0:01:19]}  Rg6 {[%clk 0:00:52]} 30. Rg4 {[%clk 0:01:16]}  Re6+ {[%clk 0:00:50]} 31. Kd2 {[%clk 0:01:15]}  a5 {[%clk 0:00:50]} 32. h4 {[%clk 0:01:12]}  Rf6 {[%clk 0:00:45]} 33. Ke3 {[%clk 0:01:10]}  Re6+ {[%clk 0:00:35]} 34. Re4 {[%clk 0:01:10]}  Rf6 {[%clk 0:00:35]} 35. Rg4 {[%clk 0:00:46]}  Re6+ {[%clk 0:00:35]} 36. Re4 {[%clk 0:00:46]}  Rf6 {[%clk 0:00:35]} 37. Rg4 {[%clk 0:00:45]} 1/2-1/2


[Site "https://www.chess.com"]

[Event "Titled Tuesday Blitz June 15 2021"]
[White "Jones, Gawain C B"]
[Black "Nakamura, Hikaru"]
[WhiteFideId "409561"]
[BlackFideId "2016192"]
[WhiteElo "2657"]
[BlackElo "2900"]
[Result "1-0"]
[Round "05"]
[TimeControl "180+1"]
[Date "2021.06.15"]
[WhiteClock "0:00:12"]
[BlackClock "0:00:13"]

1. e4 {[%clk 0:03:00]}  c5 {[%clk 0:02:58]} 2. Nc3 {[%clk 0:03:00]}  a6 {[%clk 0:02:57]} 3. g3 {[%clk 0:03:00]}  g6 {[%clk 0:02:56]} 4. Bg2 {[%clk 0:03:00]}  Bg7 {[%clk 0:02:56]} 5. d3 {[%clk 0:02:59]}  Nc6 {[%clk 0:02:57]} 6. Be3 {[%clk 0:02:57]}  d6 {[%clk 0:02:57]} 7. Qd2 {[%clk 0:02:58]}  e6 {[%clk 0:02:51]} 8. Nge2 {[%clk 0:02:57]}  Nd4 {[%clk 0:02:50]} 9. O-O {[%clk 0:02:55]}  Bd7 {[%clk 0:02:50]} 10. Nc1 {[%clk 0:02:54]}  Rc8 {[%clk 0:02:45]} 11. Nd1 {[%clk 0:02:54]}  b5 {[%clk 0:02:44]} 12. c3 {[%clk 0:02:54]}  Nc6 {[%clk 0:02:45]} 13. d4 {[%clk 0:02:45]}  cxd4 {[%clk 0:02:41]} 14. cxd4 {[%clk 0:02:45]}  Nf6 {[%clk 0:02:41]} 15. h3 {[%clk 0:02:36]}  O-O {[%clk 0:02:38]} 16. Ne2 {[%clk 0:02:36]}  d5 {[%clk 0:02:22]} 17. e5 {[%clk 0:02:28]}  Ne4 {[%clk 0:02:22]} 18. Bxe4 {[%clk 0:02:15]}  dxe4 {[%clk 0:02:23]} 19. Ndc3 {[%clk 0:02:15]}  Na5 {[%clk 0:02:21]} 20. b3 {[%clk 0:02:09]}  Bc6 {[%clk 0:02:21]} 21. Bg5 {[%clk 0:02:04]}  f6 {[%clk 0:02:15]} 22. exf6 {[%clk 0:02:02]}  Bxf6 {[%clk 0:02:16]} 23. Bxf6 {[%clk 0:01:54]}  Qxf6 {[%clk 0:02:14]} 24. Qe3 {[%clk 0:01:49]}  Qf3 {[%clk 0:02:01]} 25. Nf4 {[%clk 0:01:42]}  b4 {[%clk 0:02:00]} 26. Nd1 {[%clk 0:01:33]}  Rfe8 {[%clk 0:01:48]} 27. Rc1 {[%clk 0:01:31]}  Nb7 {[%clk 0:01:43]} 28. Re1 {[%clk 0:01:25]}  Kf7 {[%clk 0:01:33]} 29. Qxf3 {[%clk 0:01:13]}  exf3 {[%clk 0:01:34]} 30. Ne3 {[%clk 0:01:13]}  Bb5 {[%clk 0:01:27]} 31. Ng4 {[%clk 0:01:10]}  g5 {[%clk 0:01:02]} 32. Ne5+ {[%clk 0:01:03]}  Ke7 {[%clk 0:01:00]} 33. Nfd3 {[%clk 0:00:52]}  a5 {[%clk 0:00:59]} 34. Nc5 {[%clk 0:00:46]}  Nxc5 {[%clk 0:00:55]} 35. dxc5 {[%clk 0:00:45]}  Bc6 {[%clk 0:00:53]} 36. Nc4 {[%clk 0:00:35]}  Ra8 {[%clk 0:00:48]} 37. Re5 {[%clk 0:00:28]}  Kf6 {[%clk 0:00:47]} 38. Rce1 {[%clk 0:00:28]}  h6 {[%clk 0:00:43]} 39. g4 {[%clk 0:00:27]}  a4 {[%clk 0:00:33]} 40. Kh2 {[%clk 0:00:22]}  axb3 {[%clk 0:00:27]} 41. axb3 {[%clk 0:00:23]}  Ra2 {[%clk 0:00:26]} 42. Kg3 {[%clk 0:00:22]}  Rc2 {[%clk 0:00:24]} 43. Nd6 {[%clk 0:00:18]}  Re7 {[%clk 0:00:24]} 44. Nc8 {[%clk 0:00:18]}  Re8 {[%clk 0:00:25]} 45. Nd6 {[%clk 0:00:18]}  Re7 {[%clk 0:00:25]} 46. Nf5 {[%clk 0:00:14]}  Re8 {[%clk 0:00:18]} 47. Nd4 {[%clk 0:00:14]}  Rc3 {[%clk 0:00:14]} 48. Rxe6+ {[%clk 0:00:14]}  Kf7 {[%clk 0:00:12]} 49. Nxc6 {[%clk 0:00:13]}  Rxe6 {[%clk 0:00:11]} 50. Nd8+ {[%clk 0:00:14]}  Kf6 {[%clk 0:00:12]} 51. Rxe6+ {[%clk 0:00:12]}  Kg7 {[%clk 0:00:13]} 52. c6 {[%clk 0:00:12]}  Rxb3 {[%clk 0:00:13]} 53. c7 {[%clk 0:00:12]} 1-0


[Site "https://www.chess.com"]

[Event "Titled Tuesday Blitz June 15 2021"]
[White "Jumabayev, Rinat"]
[Black "Yaran, Siar"]
[WhiteFideId "13702661"]
[BlackFideId "6323006"]
[WhiteElo "2535"]
[BlackElo "1977"]
[Result "1-0"]
[Round "05"]
[TimeControl "180+1"]
[Date "2021.06.15"]
[WhiteClock "0:00:07"]
[BlackClock "0:00:03"]

1. d4 {[%clk 0:03:00]}  Nf6 {[%clk 0:02:59]} 2. c3 {[%clk 0:02:58]}  d5 {[%clk 0:02:58]} 3. Bg5 {[%clk 0:02:58]}  e6 {[%clk 0:02:58]} 4. Nd2 {[%clk 0:02:58]}  Nbd7 {[%clk 0:02:56]} 5. e3 {[%clk 0:02:44]}  Be7 {[%clk 0:02:56]} 6. Bd3 {[%clk 0:02:44]}  O-O {[%clk 0:02:53]} 7. f4 {[%clk 0:02:44]}  c5 {[%clk 0:02:49]} 8. Ngf3 {[%clk 0:02:44]}  Qb6 {[%clk 0:02:46]} 9. Rb1 {[%clk 0:02:21]}  Rd8 {[%clk 0:02:42]} 10. Ne5 {[%clk 0:02:19]}  Nf8 {[%clk 0:02:41]} 11. O-O {[%clk 0:02:14]}  Bd7 {[%clk 0:02:41]} 12. Qe2 {[%clk 0:02:12]}  Rac8 {[%clk 0:02:40]} 13. Kh1 {[%clk 0:02:11]}  a6 {[%clk 0:02:38]} 14. Rf3 {[%clk 0:01:53]}  Bb5 {[%clk 0:02:27]} 15. Bxb5 {[%clk 0:01:39]}  Qxb5 {[%clk 0:02:25]} 16. Qxb5 {[%clk 0:01:39]}  axb5 {[%clk 0:02:26]} 17. dxc5 {[%clk 0:01:39]}  Rxc5 {[%clk 0:02:18]} 18. Nb3 {[%clk 0:01:31]}  Rc7 {[%clk 0:02:07]} 19. f5 {[%clk 0:01:07]}  Ne4 {[%clk 0:01:57]} 20. Bxe7 {[%clk 0:00:58]}  Rxe7 {[%clk 0:01:58]} 21. fxe6 {[%clk 0:00:58]}  Nxe6 {[%clk 0:01:51]} 22. Nd3 {[%clk 0:00:53]}  N6g5 {[%clk 0:01:38]} 23. Rff1 {[%clk 0:00:51]}  Nd6 {[%clk 0:01:37]} 24. Nb4 {[%clk 0:00:46]}  Nc4 {[%clk 0:01:34]} 25. Rf5 {[%clk 0:00:46]}  Ne4 {[%clk 0:01:10]} 26. Rxd5 {[%clk 0:00:43]}  Rxd5 {[%clk 0:01:09]} 27. Nxd5 {[%clk 0:00:43]}  Rd7 {[%clk 0:01:09]} 28. Nf4 {[%clk 0:00:36]}  Nxe3 {[%clk 0:00:33]} 29. Nd4 {[%clk 0:00:31]}  b4 {[%clk 0:00:29]} 30. Re1 {[%clk 0:00:31]}  bxc3 {[%clk 0:00:28]} 31. bxc3 {[%clk 0:00:32]}  Nxc3 {[%clk 0:00:12]} 32. Rxe3 {[%clk 0:00:30]}  g5 {[%clk 0:00:13]} 33. Rxc3 {[%clk 0:00:28]}  Rxd4 {[%clk 0:00:11]} 34. Nd3 {[%clk 0:00:24]}  Kg7 {[%clk 0:00:08]} 35. Kg1 {[%clk 0:00:25]}  f5 {[%clk 0:00:07]} 36. Rb3 {[%clk 0:00:25]}  Kf6 {[%clk 0:00:07]} 37. Kf2 {[%clk 0:00:25]}  f4 {[%clk 0:00:07]} 38. Ke2 {[%clk 0:00:21]}  h5 {[%clk 0:00:04]} 39. Rb6+ {[%clk 0:00:19]}  Kf5 {[%clk 0:00:04]} 40. Rb5+ {[%clk 0:00:20]}  Kf6 {[%clk 0:00:02]} 41. Rxb7 {[%clk 0:00:20]}  Ra4 {[%clk 0:00:02]} 42. Rb6+ {[%clk 0:00:20]}  Kf5 {[%clk 0:00:03]} 43. Rb5+ {[%clk 0:00:20]}  Kf6 {[%clk 0:00:03]} 44. h4 {[%clk 0:00:15]}  gxh4 {[%clk 0:00:03]} 45. Rxh5 {[%clk 0:00:13]}  Kg6 {[%clk 0:00:03]} 46. Rd5 {[%clk 0:00:07]} 1-0


[Site "https://www.chess.com"]

[Event "Titled Tuesday Blitz June 15 2021"]
[White "Kholin, Aleksandr"]
[Black "Costachi, Mihnea"]
[WhiteFideId "14179385"]
[BlackFideId "1217518"]
[WhiteElo "2511"]
[BlackElo "2479"]
[Result "0-1"]
[Round "05"]
[TimeControl "180+1"]
[Date "2021.06.15"]
[WhiteClock "0:00:23"]
[BlackClock "0:01:26"]

1. e4 {[%clk 0:03:00]}  e5 {[%clk 0:02:54]} 2. Nf3 {[%clk 0:02:59]}  Nc6 {[%clk 0:02:53]} 3. Bc4 {[%clk 0:02:57]}  Bc5 {[%clk 0:02:52]} 4. c3 {[%clk 0:02:55]}  Nf6 {[%clk 0:02:53]} 5. d3 {[%clk 0:02:55]}  d6 {[%clk 0:02:52]} 6. a4 {[%clk 0:02:54]}  a6 {[%clk 0:02:52]} 7. O-O {[%clk 0:02:52]}  h6 {[%clk 0:02:52]} 8. b4 {[%clk 0:02:51]}  Ba7 {[%clk 0:02:52]} 9. Nbd2 {[%clk 0:02:50]}  g5 {[%clk 0:02:52]} 10. Qb3 {[%clk 0:02:36]}  Qe7 {[%clk 0:02:48]} 11. Bb2 {[%clk 0:02:27]}  Be6 {[%clk 0:02:45]} 12. Bxe6 {[%clk 0:02:06]}  fxe6 {[%clk 0:02:43]} 13. b5 {[%clk 0:02:04]}  Nd8 {[%clk 0:02:38]} 14. d4 {[%clk 0:02:03]}  exd4 {[%clk 0:02:24]} 15. cxd4 {[%clk 0:02:02]}  g4 {[%clk 0:02:25]} 16. Ne1 {[%clk 0:01:56]}  O-O {[%clk 0:02:18]} 17. Nd3 {[%clk 0:01:51]}  Nf7 {[%clk 0:02:14]} 18. Rae1 {[%clk 0:01:32]}  Ng5 {[%clk 0:02:06]} 19. Kh1 {[%clk 0:01:24]}  Rae8 {[%clk 0:01:58]} 20. bxa6 {[%clk 0:01:22]}  bxa6 {[%clk 0:01:58]} 21. Qc4 {[%clk 0:01:18]}  a5 {[%clk 0:01:55]} 22. Bc3 {[%clk 0:01:10]}  Bb6 {[%clk 0:01:55]} 23. Qc6 {[%clk 0:01:10]}  Kh7 {[%clk 0:01:40]} 24. Nc4 {[%clk 0:01:03]}  Qd7 {[%clk 0:01:33]} 25. Qxd7+ {[%clk 0:00:55]}  Nxd7 {[%clk 0:01:34]} 26. Nxa5 {[%clk 0:00:54]}  Ra8 {[%clk 0:01:33]} 27. Nc4 {[%clk 0:00:43]}  Rxa4 {[%clk 0:01:33]} 28. Nxb6 {[%clk 0:00:42]}  Nxb6 {[%clk 0:01:34]} 29. Rc1 {[%clk 0:00:40]}  Nxe4 {[%clk 0:01:33]} 30. Bb4 {[%clk 0:00:30]}  Nd5 {[%clk 0:01:33]} 31. Be1 {[%clk 0:00:27]}  Rxd4 {[%clk 0:01:32]} 32. Nb2 {[%clk 0:00:27]}  g3 {[%clk 0:01:27]} 33. f3 {[%clk 0:00:23]}  Ne3 {[%clk 0:01:26]} 0-1


[Site "https://www.chess.com"]

[Event "Titled Tuesday Blitz June 15 2021"]
[White "Kim, Sergey"]
[Black "Can, Emre"]
[WhiteFideId "13700570"]
[BlackFideId "6302181"]
[WhiteElo "2479"]
[BlackElo "2503"]
[Result "1-0"]
[Round "05"]
[TimeControl "180+1"]
[Date "2021.06.15"]
[WhiteClock "0:00:43"]
[BlackClock "0:00:04"]

1. d4 {[%clk 0:03:00]}  Nf6 {[%clk 0:02:57]} 2. c4 {[%clk 0:03:00]}  g6 {[%clk 0:02:58]} 3. Nc3 {[%clk 0:03:00]}  Bg7 {[%clk 0:02:58]} 4. e4 {[%clk 0:03:00]}  d6 {[%clk 0:02:59]} 5. Nge2 {[%clk 0:03:00]}  O-O {[%clk 0:02:57]} 6. Ng3 {[%clk 0:03:00]}  c5 {[%clk 0:02:57]} 7. d5 {[%clk 0:02:59]}  e6 {[%clk 0:02:57]} 8. Be2 {[%clk 0:02:59]}  exd5 {[%clk 0:02:57]} 9. cxd5 {[%clk 0:03:00]}  a6 {[%clk 0:02:57]} 10. a4 {[%clk 0:02:59]}  h5 {[%clk 0:02:55]} 11. Bg5 {[%clk 0:02:58]}  Qb6 {[%clk 0:02:54]} 12. Qd2 {[%clk 0:02:58]}  Nh7 {[%clk 0:02:54]} 13. Bh4 {[%clk 0:02:57]}  Nd7 {[%clk 0:02:32]} 14. O-O {[%clk 0:02:55]}  Re8 {[%clk 0:02:29]} 15. f4 {[%clk 0:02:49]}  Ndf6 {[%clk 0:02:06]} 16. a5 {[%clk 0:02:44]}  Qc7 {[%clk 0:02:01]} 17. e5 {[%clk 0:02:39]}  dxe5 {[%clk 0:01:56]} 18. d6 {[%clk 0:02:39]}  Qc6 {[%clk 0:01:46]} 19. f5 {[%clk 0:02:39]}  e4 {[%clk 0:01:40]} 20. fxg6 {[%clk 0:02:16]}  fxg6 {[%clk 0:01:40]} 21. Bxf6 {[%clk 0:02:00]}  Nxf6 {[%clk 0:01:11]} 22. Qg5 {[%clk 0:01:56]}  Qxd6 {[%clk 0:01:05]} 23. Qxg6 {[%clk 0:01:48]}  Qe5 {[%clk 0:00:20]} 24. Rxf6 {[%clk 0:01:33]}  Bg4 {[%clk 0:00:13]} 25. Rf5 {[%clk 0:00:59]}  Qd4+ {[%clk 0:00:11]} 26. Kh1 {[%clk 0:00:58]}  Rf8 {[%clk 0:00:11]} 27. Bxg4 {[%clk 0:00:55]}  hxg4 {[%clk 0:00:11]} 28. Raf1 {[%clk 0:00:54]}  Rxf5 {[%clk 0:00:11]} 29. Nxf5 {[%clk 0:00:52]}  Qe5 {[%clk 0:00:08]} 30. Nxe4 {[%clk 0:00:46]}  Rf8 {[%clk 0:00:06]} 31. Ng5 {[%clk 0:00:43]}  Rxf5 {[%clk 0:00:04]} 32. Qxf5 {[%clk 0:00:43]} 1-0


[Site "https://www.chess.com"]

[Event "Titled Tuesday Blitz June 15 2021"]
[White "Krivonosov, Oleg"]
[Black "shnitez"]
[WhiteFideId "11600349"]
[WhiteElo "2469"]
[BlackElo "2509"]
[Result "1-0"]
[Round "05"]
[TimeControl "180+1"]
[Date "2021.06.15"]
[WhiteClock "0:00:34"]
[BlackClock "0:00:03"]

1. Nf3 {[%clk 0:03:00]}  d5 {[%clk 0:02:58]} 2. d4 {[%clk 0:03:00]}  Nf6 {[%clk 0:02:58]} 3. c4 {[%clk 0:03:00]}  e6 {[%clk 0:02:59]} 4. g3 {[%clk 0:02:59]}  dxc4 {[%clk 0:02:57]} 5. Qa4+ {[%clk 0:02:58]}  Bd7 {[%clk 0:02:53]} 6. Qxc4 {[%clk 0:02:57]}  Bc6 {[%clk 0:02:53]} 7. Bg2 {[%clk 0:02:56]}  Be7 {[%clk 0:02:43]} 8. Nc3 {[%clk 0:02:55]}  a6 {[%clk 0:02:41]} 9. O-O {[%clk 0:02:51]}  O-O {[%clk 0:02:39]} 10. Bg5 {[%clk 0:02:49]}  b5 {[%clk 0:02:34]} 11. Qd3 {[%clk 0:02:45]}  Nbd7 {[%clk 0:02:20]} 12. Rac1 {[%clk 0:02:33]}  b4 {[%clk 0:02:15]} 13. Nb1 {[%clk 0:02:32]}  Be4 {[%clk 0:02:07]} 14. Qd1 {[%clk 0:02:29]}  Bd5 {[%clk 0:01:43]} 15. Nbd2 {[%clk 0:02:25]}  Qb8 {[%clk 0:01:28]} 16. Nc4 {[%clk 0:02:19]}  c5 {[%clk 0:01:20]} 17. b3 {[%clk 0:02:12]}  Rd8 {[%clk 0:01:16]} 18. Qc2 {[%clk 0:02:03]}  Be4 {[%clk 0:01:10]} 19. Qb2 {[%clk 0:02:02]}  h6 {[%clk 0:01:07]} 20. Bf4 {[%clk 0:01:56]}  Qb5 {[%clk 0:00:58]} 21. Rfd1 {[%clk 0:01:51]}  Nd5 {[%clk 0:00:49]} 22. Nd6 {[%clk 0:01:43]}  Bxd6 {[%clk 0:00:46]} 23. Bxd6 {[%clk 0:01:43]}  Nc3 {[%clk 0:00:42]} 24. Rd2 {[%clk 0:01:41]}  cxd4 {[%clk 0:00:33]} 25. Nxd4 {[%clk 0:01:33]}  Qb7 {[%clk 0:00:30]} 26. Nf3 {[%clk 0:01:28]}  a5 {[%clk 0:00:27]} 27. a4 {[%clk 0:01:22]}  Ra6 {[%clk 0:00:22]} 28. Bf4 {[%clk 0:01:19]}  Raa8 {[%clk 0:00:19]} 29. Be3 {[%clk 0:01:15]}  Nf6 {[%clk 0:00:18]} 30. Bd4 {[%clk 0:01:11]}  Nfd5 {[%clk 0:00:17]} 31. Ne1 {[%clk 0:01:01]}  Bxg2 {[%clk 0:00:16]} 32. Nxg2 {[%clk 0:01:01]}  f6 {[%clk 0:00:15]} 33. Ne3 {[%clk 0:00:57]}  e5 {[%clk 0:00:12]} 34. Nxd5 {[%clk 0:00:51]}  Nxd5 {[%clk 0:00:12]} 35. Bc5 {[%clk 0:00:49]}  Nc3 {[%clk 0:00:12]} 36. Rcc2 {[%clk 0:00:45]}  Qc7 {[%clk 0:00:10]} 37. Be3 {[%clk 0:00:44]}  Qc6 {[%clk 0:00:09]} 38. Rxd8+ {[%clk 0:00:42]}  Rxd8 {[%clk 0:00:09]} 39. Rd2 {[%clk 0:00:42]}  Rd5 {[%clk 0:00:09]} 40. Rxd5 {[%clk 0:00:40]}  Qxd5 {[%clk 0:00:09]} 41. Qc2 {[%clk 0:00:40]}  Qd1+ {[%clk 0:00:08]} 42. Qxd1 {[%clk 0:00:39]}  Nxd1 {[%clk 0:00:09]} 43. Bb6 {[%clk 0:00:38]}  Nc3 {[%clk 0:00:09]} 44. Kf1 {[%clk 0:00:37]}  Na2 {[%clk 0:00:04]} 45. Bxa5 {[%clk 0:00:37]}  Nc1 {[%clk 0:00:05]} 46. Bxb4 {[%clk 0:00:35]}  Nxb3 {[%clk 0:00:06]} 47. a5 {[%clk 0:00:35]}  Nd4 {[%clk 0:00:04]} 48. a6 {[%clk 0:00:34]}  Nb5 {[%clk 0:00:03]} 49. Bc5 {[%clk 0:00:34]} 1-0


[Site "https://www.chess.com"]

[Event "Titled Tuesday Blitz June 15 2021"]
[White "Kukhmazov, Arsen"]
[Black "Skliarov, Viktor"]
[WhiteFideId "24108260"]
[BlackFideId "14106736"]
[WhiteElo "2453"]
[BlackElo "2344"]
[Result "1-0"]
[Round "05"]
[TimeControl "180+1"]
[Date "2021.06.15"]
[WhiteClock "0:00:12"]
[BlackClock "0:00:01"]

1. d4 {[%clk 0:02:59]}  Nf6 {[%clk 0:02:58]} 2. c4 {[%clk 0:03:00]}  e6 {[%clk 0:02:58]} 3. Nc3 {[%clk 0:02:57]}  Bb4 {[%clk 0:02:58]} 4. Qc2 {[%clk 0:02:58]}  c5 {[%clk 0:02:58]} 5. dxc5 {[%clk 0:02:54]}  Na6 {[%clk 0:02:58]} 6. a3 {[%clk 0:02:54]}  Bxc3+ {[%clk 0:02:59]} 7. Qxc3 {[%clk 0:02:55]}  Nxc5 {[%clk 0:02:59]} 8. b4 {[%clk 0:02:55]}  Nce4 {[%clk 0:03:00]} 9. Qb2 {[%clk 0:02:55]}  d5 {[%clk 0:02:59]} 10. c5 {[%clk 0:02:49]}  h6 {[%clk 0:02:58]} 11. e3 {[%clk 0:02:38]}  O-O {[%clk 0:02:53]} 12. Bd3 {[%clk 0:02:38]}  a5 {[%clk 0:02:45]} 13. Nf3 {[%clk 0:02:36]}  axb4 {[%clk 0:02:38]} 14. axb4 {[%clk 0:02:37]}  Rxa1 {[%clk 0:02:37]} 15. Qxa1 {[%clk 0:02:38]}  b6 {[%clk 0:02:31]} 16. c6 {[%clk 0:02:38]}  Ng4 {[%clk 0:02:07]} 17. O-O {[%clk 0:02:31]}  Qd6 {[%clk 0:01:54]} 18. h3 {[%clk 0:02:32]}  Ngxf2 {[%clk 0:01:49]} 19. Rxf2 {[%clk 0:02:30]}  Nxf2 {[%clk 0:01:49]} 20. Kxf2 {[%clk 0:02:31]}  Qxb4 {[%clk 0:01:43]} 21. Ba3 {[%clk 0:01:57]}  Qa5 {[%clk 0:01:39]} 22. Qb2 {[%clk 0:01:42]}  Re8 {[%clk 0:01:36]} 23. Ne5 {[%clk 0:01:25]}  Ba6 {[%clk 0:01:30]} 24. c7 {[%clk 0:00:44]}  Bxd3 {[%clk 0:01:21]} 25. Nxd3 {[%clk 0:00:41]}  Rc8 {[%clk 0:01:18]} 26. Bd6 {[%clk 0:00:41]}  Qa4 {[%clk 0:01:10]} 27. Ne5 {[%clk 0:00:36]}  Ra8 {[%clk 0:00:29]} 28. Qc3 {[%clk 0:00:12]}  Qa6 {[%clk 0:00:09]} 29. Nc6 {[%clk 0:00:12]}  Kh7 {[%clk 0:00:07]} 30. Ne7 {[%clk 0:00:12]}  Qa2+ {[%clk 0:00:07]} 31. Kg3 {[%clk 0:00:12]}  Qb1 {[%clk 0:00:01]} 32. c8=Q {[%clk 0:00:12]}  Rxc8 {[%clk 0:00:01]} 33. Nxc8 {[%clk 0:00:12]} 1-0


[Site "https://www.chess.com"]